bitfinex/quotes_ETHUSD_20241203
["timestamp","ask_amount","ask_price","bid_price","bid_amount"]
[1733252094851,0.26074026,3584.0,3583.8,3.10320943]
[1733252095046,0.46910973,3584.3,3583.8,3.10320943]
[1733252095356,0.46910973,3584.2,3583.8,3.10320943]
[1733252095655,0.26074026,3584.1,3584.0,2.79017]
[1733252095934,0.46910973,3584.7,3584.0,3.17743794]
[1733252096142,0.46910973,3584.6,3584.0,3.17743794]
[1733252096307,0.46910973,3584.5,3584.0,3.17743794]
[1733252096641,0.46910973,3584.4,3584.1,2.79008]
[1733252096814,0.46910973,3584.3,3584.1,2.79008]
[1733252097016,0.26074026,3584.2,3584.1,3.13910574]
[1733252100282,0.20836947,3584.7,3584.1,3.13910574]
[1733252100492,0.46916819,3584.6,3584.1,0.34902574]
[1733252100680,0.46916819,3584.5,3584.3,2.78986]
[1733252100846,0.46916819,3584.4,3584.1,2.79007]
[1733252101044,0.46916819,3584.3,3584.1,2.79007]
[1733252101244,0.26083084,3584.2,3584.1,2.79007]
[1733252102283,0.26083084,3584.2,3584.1,3.56287]
[1733252102494,0.20870284,3584.8,3584.7,2.78963]
[1733252102791,0.46961051,3584.8,3584.7,2.78963]
[1733252103163,0.46961051,3584.8,3584.5,2.78976]
[1733252103375,0.46961051,3584.7,3584.5,2.78976]
[1733252103580,0.46961051,3584.6,3584.5,2.78976]
[1733252103784,0.02780179,3584.9,3584.7,2.78963]
[1733252103785,5.1e-07,3584.8,3584.7,2.78963]
[1733252103968,0.02780179,3584.9,3584.8,3.56235]
[1733252104294,0.02780179,3584.9,3584.8,4.14023885]
[1733252105086,0.02780179,3584.9,3584.8,6.69876521]
[1733252105277,0.02780179,3584.9,3584.8,6.12087636]
[1733252105473,0.02780179,3584.9,3584.8,7.0677371]
[1733252107901,0.02780179,3584.9,3584.8,7.0700371]
[1733252108704,1.79e-06,3584.9,3584.8,7.0700371]
[1733252116078,1.79e-06,3584.9,3584.8,10.99467571]
[1733252116316,1.79e-06,3584.9,3584.8,10.6200371]
[1733252121019,1.79e-06,3584.9,3584.8,4.51151074]
[1733252121219,1.79e-06,3584.9,3584.8,2.78955]
[1733252122133,1.79e-06,3584.9,3584.1,0.8317]
[1733252122134,1.79e-06,3584.9,3584.6,2.78971]
[1733252122313,1.79e-06,3584.9,3584.3,0.02789409]
[1733252122502,1.79e-06,3584.9,3584.5,2.78978]
[1733252123099,1.79e-06,3584.9,3584.5,2.78971]
[1733252123726,1.79e-06,3584.9,3584.6,2.78966]
[1733252124102,1.79e-06,3584.9,3584.7,2.81751447]
[1733252124327,1.79e-06,3584.9,3584.8,2.81744345]
[1733252124529,1.79e-06,3584.9,3584.8,2.78955]
[1733252126233,1.79e-06,3584.9,3584.6,2.78968]
[1733252126830,1.79e-06,3584.9,3584.7,2.78961]
[1733252127389,1.79e-06,3584.9,3584.3,2.58641811]
[1733252127595,1.79e-06,3584.9,3584.8,2.78955]
[1733252128096,1.79e-06,3584.9,3584.8,3.57195]
[1733252128526,1.79e-06,3584.9,3584.8,3.59983893]
[1733252128797,1.79e-06,3584.9,3584.8,3.57195]
[1733252130612,1.79e-06,3584.9,3584.8,6.57195]
[1733252130937,1.79e-06,3584.9,3584.8,7.76676029]
[1733252134538,0.07357976,3585.7,3585.6,2.78893]
[1733252134732,0.33457391,3585.7,3585.6,2.78893]
[1733252135927,3.33223238,3585.7,3584.6,2.78964]
[1733252136165,0.46978262,3585.6,3584.6,0.278964]
[1733252136468,0.48791631,3585.7,3585.1,2.78925]
[1733252136469,0.4698079,3585.5,3585.1,2.78925]
[1733252136636,0.4698079,3585.4,3584.6,2.55852636]
[1733252136834,0.4698079,3585.3,3585.0,2.78938]
[1733252137034,0.07357976,3585.7,3584.6,5.34818636]
[1733252137035,0.26099415,3585.2,3585.1,2.78929]
[1733252137235,0.26099415,3585.2,3584.9,2.78945]
[1733252137461,0.26098316,3585.1,3584.9,2.78945]
[1733252137664,0.20879483,3585.4,3584.9,2.78945]
[1733252137835,0.46978059,3585.3,3584.9,2.78945]
[1733252138044,0.26098576,3585.2,3585.0,2.78938]
[1733252138264,0.26098576,3585.1,3585.0,2.78938]
[1733252139477,0.26098576,3585.1,3584.6,2.78968]
[1733252139674,0.26098576,3585.0,3584.6,2.78965]
[1733252139969,0.26100615,3584.9,3584.6,2.78965]
[1733252140131,0.20880492,3585.5,3584.6,2.78965]
[1733252140326,0.46981047,3585.4,3584.6,2.78965]
[1733252140527,0.46981047,3585.3,3584.6,2.78965]
[1733252140775,0.46981047,3585.2,3584.6,2.78965]
[1733252140980,0.46981047,3585.1,3584.6,2.78965]
[1733252141141,0.46981047,3585.0,3584.6,2.78965]
[1733252141338,0.26100555,3584.9,3584.6,2.78965]
[1733252141559,0.20880492,3585.3,3584.7,2.78961]
[1733252141762,0.30712747,3585.5,3584.7,2.78961]
[1733252141763,0.46978165,3585.2,3584.7,2.78961]
[1733252141946,0.46978165,3585.1,3584.7,2.78961]
[1733252142148,0.30712747,3585.5,3584.7,2.78961]
[1733252142149,0.26097673,3585.0,3584.7,2.78961]
[1733252142340,0.26097673,3584.9,3584.7,2.78961]
[1733252142539,0.20877797,3585.2,3584.7,2.78961]
[1733252142841,0.46975176,3585.1,3584.7,2.78961]
[1733252143182,0.46975176,3585.0,3584.7,2.78961]
[1733252143376,0.26097379,3584.9,3584.7,2.78961]
[1733252143547,0.20877797,3585.3,3584.7,2.78961]
[1733252143752,0.46974383,3585.2,3584.5,2.78978]
[1733252143979,0.46974383,3585.1,3584.5,2.78978]
[1733252144190,0.46974383,3585.0,3584.5,2.78978]
[1733252144518,0.46974383,3584.9,3584.1,2.79006]
[1733252144641,0.46974383,3584.8,3583.6,0.7681]
[1733252144852,0.26096586,3584.7,3584.1,2.79009]
[1733252145179,0.26096586,3584.6,3584.1,2.79009]
[1733252145378,2.78957,3584.8,3583.8,2.79032]
[1733252145586,0.46974036,3584.7,3583.8,2.79032]
[1733252145786,0.46974036,3584.6,3583.8,2.79032]
[1733252146087,0.46974036,3584.5,3583.8,2.79032]
[1733252146289,2.78957,3584.8,3583.8,2.79032]
[1733252146290,0.26095384,3584.4,3583.8,2.79032]
[1733252146585,0.26095384,3584.3,3583.8,2.79032]
[1733252146785,0.20878652,3584.5,3583.8,2.79032]
[1733252147099,0.26090505,3584.4,3583.8,2.79032]
[1733252147263,0.20878652,3584.6,3583.7,0.33266264]
[1733252147451,0.26085829,3584.5,3583.9,2.79024]
[1733252147656,0.26085829,3584.4,3583.9,2.79024]
[1733252147850,0.20878652,3584.7,3583.9,2.79024]
[1733252148078,0.46964144,3584.6,3583.7,0.33266264]
[1733252148284,0.46964144,3584.5,3583.8,2.79031]
[1733252148596,0.26085492,3584.4,3583.8,2.79031]
[1733252148762,0.20878652,3584.6,3583.8,2.79031]
[1733252149090,0.26083029,3584.5,3583.8,2.79031]
[1733252149276,0.26083029,3584.4,3583.6,2.79046]
[1733252149479,0.20878652,3584.6,3583.7,2.7904]
[1733252149697,0.4695933,3584.5,3583.7,2.7904]
[1733252149992,0.26080678,3584.4,3584.0,2.79011]
[1733252150197,0.20878652,3585.0,3584.1,0.02789804]
[1733252150382,1.0195763,3584.9,3584.0,2.79011]
[1733252150592,0.46939111,3584.8,3583.8,3.31432636]
[1733252150902,0.26077284,3584.7,3584.5,2.78978]
[1733252151053,0.26077284,3584.6,3584.5,2.78978]
[1733252151399,0.46939111,3585.0,3584.9,2.78947]
[1733252151570,0.26077284,3585.0,3584.9,2.78947]
[1733252151763,0.46939111,3585.5,3584.9,2.78947]
[1733252151960,0.46939111,3585.4,3585.3,2.78916]
[1733252152186,0.26077284,3585.4,3585.3,2.78916]
[1733252152402,0.26077284,3585.5,3585.0,3.56674]
[1733252152572,0.07357976,3585.7,3585.0,3.33592636]
[1733252152898,0.07357976,3585.7,3585.6,2.78893]
[1733252156903,0.33416932,3585.7,3585.6,2.78893]
[1733252157105,0.07357976,3585.7,3585.6,2.78893]
[1733252158167,0.33416932,3585.7,3585.6,2.78893]
[1733252158373,0.07357976,3585.7,3585.6,2.78893]
[1733252158695,0.07357976,3585.7,3585.1,2.78932]
[1733252158897,0.07357976,3585.7,3585.1,3.2017831]
[1733252159103,0.07357976,3585.7,3585.6,2.78893]
[1733252160106,0.07357976,3585.7,3585.6,3.59633]
[1733252165211,0.07357976,3585.7,3585.6,2.78893]
[1733252165520,0.07357976,3585.7,3585.6,2.81681377]
[1733252165818,0.07357976,3585.7,3585.6,3.68522001]
[1733252167486,0.46888759,3586.4,3585.6,3.68522001]
[1733252167729,0.20840868,3586.8,3586.7,2.78807]
[1733252167891,0.26037372,3586.8,3586.7,2.78807]
[1733252168283,0.26037372,3586.9,3586.7,2.78807]
[1733252168479,0.26037372,3586.8,3586.7,2.78807]
[1733252169215,1.16919162,3587.4,3586.4,2.78827]
[1733252169216,0.4687824,3587.1,3586.9,2.78792]
[1733252169378,1.16919162,3587.4,3586.9,2.78792]
[1733252169379,0.26037372,3587.0,3586.9,2.78792]
[1733252170304,0.26037372,3587.0,3586.7,2.788]
[1733252170512,0.26037372,3586.9,3586.8,2.78795]
[1733252170716,0.26037372,3587.0,3586.8,2.78795]
[1733252170955,0.26037372,3587.0,3586.4,2.78831]
[1733252170956,0.26037372,3587.0,3586.5,2.78818]
[1733252171159,0.26037372,3586.9,3586.3,2.78836]
[1733252171327,0.26037372,3586.9,3585.2,3.0]
[1733252171328,0.26037372,3586.8,3585.6,2.78893]
[1733252171658,0.26037372,3586.7,3585.7,2.78882]
[1733252171959,3.36890008,3586.6,3585.6,2.78891]
[1733252172254,3.36890008,3586.6,3585.6,2.78889]
[1733252172255,0.4687824,3586.5,3585.6,2.78889]
[1733252172547,0.55,3586.6,3585.1,0.7518]
[1733252172548,0.38068524,3586.4,3585.7,2.78884]
[1733252172848,1.0187824,3586.6,3585.7,2.78884]
[1733252172849,0.26037372,3586.5,3585.7,2.78884]
[1733252174462,0.26015465,3586.5,3585.7,2.78884]
[1733252174760,1.01827837,3586.6,3585.8,2.78873]
[1733252174914,0.55,3586.6,3585.8,2.78873]
[1733252175119,0.81015465,3586.7,3585.8,2.78873]
[1733252175343,0.89663612,3586.6,3585.8,2.78873]
[1733252175541,0.26015465,3586.5,3585.8,2.78873]
[1733252175746,0.26015465,3586.5,3585.6,2.78891]
[1733252176060,3.04840465,3586.5,3585.1,0.7518]
[1733252176352,0.46827837,3586.4,3585.1,0.7518]
[1733252176657,0.26015465,3586.5,3585.6,2.78891]
[1733252176815,0.16547598,3586.4,3585.6,2.78891]
[1733252177014,0.42563063,3586.4,3585.6,2.78891]
[1733252177216,0.16547598,3586.4,3585.6,2.78891]
[1733252177527,0.26015465,3586.3,3585.6,2.78891]
[1733252177740,0.60234609,3586.3,3585.6,2.78891]
[1733252177943,0.60257546,3586.3,3585.4,2.78907]
[1733252178143,0.26038402,3586.2,3585.4,2.78907]
[1733252178319,0.26038402,3586.1,3585.4,2.78907]
[1733252178655,0.26038402,3586.2,3585.4,2.78907]
[1733252178958,0.63683254,3586.1,3585.4,2.78907]
[1733252179159,0.26038402,3586.0,3584.8,3.0]
[1733252179458,0.20812372,3586.2,3585.4,2.78903]
[1733252179664,0.34219144,3586.3,3585.4,2.78903]
[1733252179665,0.46883427,3586.1,3585.4,2.78903]
[1733252179830,0.26071055,3586.0,3585.4,2.78903]
[1733252180151,0.20812372,3586.1,3585.4,2.78903]
[1733252180368,0.46885078,3586.0,3585.4,2.78903]
[1733252180524,0.46885078,3585.9,3585.4,2.78903]
[1733252180717,0.26072706,3585.8,3585.4,2.78903]
[1733252180925,0.26072706,3585.7,3585.4,2.78901]
[1733252181151,0.20875305,3585.9,3585.4,2.78901]
[1733252181324,0.46986966,3585.8,3585.4,2.78901]
[1733252181657,0.26114337,3585.7,3585.4,2.78901]
[1733252181828,0.20891519,3586.2,3585.4,2.78901]
[1733252182065,0.47005902,3586.1,3585.4,2.78901]
[1733252182231,0.47005902,3586.0,3585.1,2.78932]
[1733252182431,0.47005902,3585.9,3585.4,2.78902]
[1733252182628,0.47005902,3585.8,3585.4,2.78902]
[1733252182858,0.47005902,3585.7,3585.4,2.78902]
[1733252183160,0.26114383,3585.6,3585.2,2.78923]
[1733252183366,0.26114383,3585.5,3585.2,2.78923]
[1733252183522,0.20897034,3586.2,3584.8,2.7895]
[1733252183866,0.47018148,3586.1,3585.1,2.7893]
[1733252184164,0.83026577,3586.0,3585.2,2.78923]
[1733252184343,0.47018148,3585.9,3585.2,2.78923]
[1733252184547,0.36008429,3586.0,3585.2,2.78923]
[1733252184548,0.47018148,3585.8,3585.2,2.78923]
[1733252184760,0.47018148,3585.7,3585.2,2.78923]
[1733252184964,0.47018148,3585.6,3584.7,0.8025]
[1733252185257,0.36008429,3586.0,3585.0,2.78932]
[1733252185258,0.47018878,3585.5,3585.0,2.78932]
[1733252185455,0.26121844,3585.4,3585.0,2.78932]
[1733252185617,0.26121844,3585.3,3585.1,2.78925]
[1733252185824,0.75897528,3586.1,3585.1,2.78925]
[1733252186034,0.85915776,3586.0,3585.4,2.78902]
[1733252186357,0.47019409,3585.9,3585.3,2.78913]
[1733252186569,0.47019409,3585.8,3585.3,2.78913]
[1733252186719,0.47019409,3585.7,3585.3,2.78913]
[1733252186925,0.47019409,3585.6,3585.3,2.78913]
[1733252187125,0.26121881,3585.5,3585.3,2.78913]
[1733252187350,0.26121881,3585.4,3585.3,2.78911]
[1733252188663,0.2611966,3585.4,3585.3,2.78911]
[1733252188861,0.20895728,3585.6,3585.3,2.78911]
[1733252189035,0.2611888,3585.5,3585.3,2.78911]
[1733252189236,0.26118843,3585.4,3584.8,2.78955]
[1733252189616,0.55,3586.0,3585.1,2.78931]
[1733252189767,0.47016196,3585.9,3585.1,2.78931]
[1733252190066,0.47016196,3585.8,3585.1,2.78931]
[1733252190223,0.47016196,3585.7,3585.1,2.78931]
[1733252190424,0.47016196,3585.6,3585.1,2.78931]
[1733252190660,0.47016196,3585.5,3585.1,2.78931]
[1733252190835,0.47016196,3585.4,3585.1,2.78931]
[1733252191042,0.47016196,3585.3,3585.1,2.78925]
[1733252191227,0.2611971,3585.2,3585.1,2.78925]
[1733252192965,0.20886274,3585.9,3585.6,2.7889]
[1733252193171,0.46992367,3585.8,3585.6,2.7889]
[1733252193362,1.16919162,3586.4,3585.3,0.8073]
[1733252193667,0.4698545,3586.3,3586.0,2.78858]
[1733252193868,0.4698545,3586.2,3586.0,2.73858]
[1733252194052,1.75167165,3586.9,3586.0,2.73858]
[1733252194053,0.4698545,3586.1,3586.0,2.73858]
[1733252194266,0.26103028,3586.1,3586.0,2.73858]
[1733252194637,0.26103028,3586.1,3586.0,4.04640756]
[1733252195071,0.4698545,3586.4,3586.0,4.04640756]
[1733252195367,0.29125623,3587.1,3586.0,4.04640756]
[1733252195368,0.20874861,3587.0,3586.5,2.78822]
[1733252195546,0.46968636,3586.9,3586.5,2.78822]
[1733252195750,0.46968636,3586.8,3586.5,2.78822]
[1733252196040,0.46968636,3586.7,3586.5,2.78822]
[1733252196272,0.46968636,3586.6,3586.5,2.78822]
[1733252197195,0.26093775,3586.6,3586.5,2.78822]
[1733252197397,0.20874861,3587.0,3586.9,2.78789]
[1733252197596,0.46957644,3587.0,3586.9,2.78789]
[1733252198506,0.26082783,3587.0,3586.9,2.78789]
[1733252198854,0.46957644,3587.0,3586.9,2.78789]
[1733252199076,0.46957644,3587.0,3586.4,2.78826]
[1733252199304,0.46944856,3586.9,3586.7,2.788]
[1733252199592,0.26082783,3586.8,3586.7,2.788]
[1733252200256,0.26082783,3586.8,3586.7,3.61877644]
[1733252200257,7.83e-06,3586.8,3586.7,3.61877644]
[1733252200563,2.3355622,3587.8,3586.7,3.61877644]
[1733252200564,1.16919162,3588.3,3587.3,2.78761]
[1733252200777,1.16919162,3588.3,3588.0,2.78705]
[1733252200993,4.0,3588.1,3588.0,2.78705]
[1733252201368,1.16919162,3588.6,3588.0,2.78705]
[1733252201804,1.16919162,3588.5,3588.0,2.78705]
[1733252202005,1.16919162,3588.6,3588.0,2.78705]
[1733252202195,1.69483417,3588.6,3587.7,0.7728]
[1733252202508,1.69483417,3588.6,3587.7,3.56008]
[1733252203068,0.52564255,3588.6,3587.7,3.56005]
[1733252203267,1.69483417,3588.6,3587.7,3.56005]
[1733252203504,1.69483417,3588.6,3587.0,2.55852636]
[1733252203505,0.52564255,3588.6,3587.5,2.78743]
[1733252203669,0.72533605,3588.5,3587.5,2.78743]
[1733252203872,0.72533605,3588.5,3587.4,0.798]
[1733252204311,0.72533605,3588.5,3587.1,0.8058]
[1733252204514,0.72533605,3588.5,3587.4,2.78749]
[1733252205007,1.89452767,3588.5,3587.4,2.78749]
[1733252205315,0.62047257,3588.4,3587.4,2.78749]
[1733252205514,0.62047257,3588.4,3587.1,0.8058]
[1733252205669,3.17899893,3588.4,3587.1,0.8058]
[1733252205867,0.62047257,3588.4,3587.1,0.8058]
[1733252206581,1.16919162,3588.7,3587.3,2.55852636]
[1733252206774,4.16919162,3588.8,3587.7,2.78722]
[1733252206974,4.16919162,3588.8,3587.1,0.8058]
[1733252206975,2.78652,3588.7,3587.5,2.78743]
[1733252207283,2.78652,3588.7,3587.6,2.78737]
[1733252207669,2.78652,3588.7,3587.7,2.78729]
[1733252207868,0.578652,3588.6,3587.7,2.78729]
[1733252209689,0.578652,3588.6,3587.2,2.78768]
[1733252209919,0.578652,3588.6,3587.5,2.78743]
[1733252210128,0.578652,3588.6,3587.3,2.7876]
[1733252210329,0.578652,3588.6,3586.0,3.34409756]
[1733252210330,2.55852636,3588.1,3586.8,0.7748]
[1733252210490,0.53453564,3588.0,3586.7,2.78804]
[1733252210925,2.78723,3587.8,3586.8,2.78799]
[1733252211096,2.78733,3587.7,3586.5,0.7748]
[1733252211616,0.53453564,3588.0,3586.7,2.78807]
[1733252212133,0.53453564,3588.0,3586.5,0.7748]
[1733252212369,2.78729,3587.8,3586.7,2.78805]
[1733252212868,0.3343623,3587.9,3586.8,0.02787615]
[1733252213073,0.3343623,3587.9,3586.6,2.81602404]
[1733252213286,0.3343623,3587.9,3587.1,2.78774]
[1733252213427,0.3343623,3587.9,3586.6,2.78815]
[1733252213428,3.1215123,3587.9,3586.6,2.78815]
[1733252213771,3.0,3588.3,3586.5,0.7748]
[1733252213772,3.09940123,3587.8,3586.7,2.78801]
[1733252213971,0.31215123,3587.8,3586.8,2.78793]
[1733252214429,0.31215123,3587.8,3586.5,0.7748]
[1733252214629,0.31215123,3587.8,3586.6,0.02787617]
[1733252215032,2.78714,3587.9,3586.6,0.02787617]
[1733252215341,0.25950995,3587.8,3586.8,2.78793]
[1733252215542,0.25950995,3587.8,3586.5,0.7748]
[1733252215756,3.04673995,3587.8,3586.5,0.7748]
[1733252215970,0.25956236,3587.7,3586.5,0.7748]
[1733252216269,0.30467924,3587.6,3586.7,2.78802]
[1733252216565,0.30467924,3587.6,3586.5,0.7748]
[1733252216566,3.09207924,3587.6,3586.6,0.03056784]
[1733252216780,2.78747,3587.5,3586.6,0.03056784]
[1733252216947,2.78755,3587.4,3586.6,0.03056784]
[1733252217136,0.30467924,3587.6,3586.6,0.03056784]
[1733252217337,2.78746,3587.5,3586.6,0.03056784]
[1733252217648,0.30921392,3587.4,3586.6,0.03056784]
[1733252219372,0.30921392,3587.4,3586.6,0.03056784]
[1733252219782,0.30921392,3587.4,3586.6,2.81865784]
[1733252221061,0.30921392,3587.4,3586.6,0.03056784]
[1733252221250,2.78767,3587.3,3586.6,0.03056784]
[1733252221454,2.78778,3587.1,3586.6,0.03056784]
[1733252221878,3.04805355,3587.0,3586.6,0.03056784]
[1733252222056,2.78788,3587.0,3586.6,0.03056784]
[1733252222468,0.26036554,3586.9,3586.6,0.03056784]
[1733252222789,0.56519009,3586.9,3586.6,0.03056784]
[1733252223348,0.30482455,3586.9,3586.6,0.03056784]
[1733252223789,0.56519009,3586.9,3586.6,0.03056784]
[1733252223947,0.30482455,3586.9,3586.6,0.03056784]
[1733252224153,0.56519009,3586.9,3586.6,0.03056784]
[1733252224350,3.38367955,3586.8,3586.6,0.03056784]
[1733252224645,0.26036554,3586.7,3586.6,0.03056784]
[1733252225848,3.04843554,3586.7,3586.6,0.03056784]
[1733252227077,7.04843554,3586.7,3586.6,0.03056784]
[1733252227884,3.04843554,3586.7,3586.6,0.03056784]
[1733252228080,6.91238856,3586.7,3586.6,0.03056784]
[1733252228352,7.46238856,3586.7,3586.6,0.03056784]
[1733252229249,2.78873,3585.9,3584.9,2.78947]
[1733252229693,2.8031847,3586.0,3584.8,0.7881]
[1733252229998,5.5923347,3585.4,3584.3,3.59292]
[1733252230163,2.8031847,3585.7,3584.5,2.78978]
[1733252230364,3.04929273,3585.6,3584.5,2.78978]
[1733252230602,0.26035273,3585.5,3584.5,2.78978]
[1733252231297,2.78894,3585.6,3584.5,2.78978]
[1733252231452,3.09450165,3585.7,3584.7,2.7896]
[1733252231788,0.26018021,3585.6,3584.8,0.27896]
[1733252231997,2.78903,3585.5,3584.5,2.78978]
[1733252232651,5.88337165,3585.7,3584.6,2.78964]
[1733252232864,0.26005968,3585.6,3584.4,0.359292]
[1733252233065,2.78901,3585.5,3584.5,2.78975]
[1733252236108,2.78913,3585.4,3584.3,3.5929]
[1733252236316,2.8031847,3585.4,3584.3,0.803]
[1733252236520,2.8031847,3585.4,3584.1,2.79008]
[1733252236674,2.78925,3585.2,3584.2,0.66361371]
[1733252237014,6.17589162,3585.4,3584.3,2.78994]
[1733252237168,2.78919,3585.3,3584.3,2.78994]
[1733252238918,0.25968248,3585.2,3584.3,2.78994]
[1733252239122,2.78933,3585.1,3584.2,2.79002]
[1733252239329,3.38678162,3585.4,3584.0,0.84605707]
[1733252239330,3.09433125,3585.0,3584.0,3.63620707]
[1733252239626,0.30490125,3585.0,3584.1,2.79009]
[1733252239825,0.56456119,3585.0,3584.1,2.79009]
[1733252240025,2.78949,3584.9,3584.0,0.84605707]
[1733252240180,0.56456119,3585.0,3584.0,0.84605707]
[1733252240181,5.5928147,3584.8,3584.0,0.01295707]
[1733252240386,3.34869177,3584.7,3584.0,0.01295707]
[1733252241329,3.04926071,3584.6,3584.0,0.01295707]
[1733252241513,0.55905177,3584.7,3584.0,0.01295707]
[1733252241514,3.34868177,3584.7,3584.0,0.01295707]
[1733252241699,3.04925726,3584.6,3584.0,0.01295707]
[1733252241899,0.25954726,3584.5,3584.0,0.01295707]
[1733252242122,0.84314418,3584.5,3584.0,0.01295707]
[1733252242329,0.58359692,3584.5,3584.0,0.01295707]
[1733252242576,0.25945003,3584.6,3584.0,2.80310707]
[1733252242777,0.55905177,3584.7,3584.0,0.01295707]
[1733252243269,3.55905177,3584.7,3584.0,0.01295707]
[1733252243429,0.25945003,3584.6,3584.0,0.01295707]
[1733252243626,0.25945003,3584.6,3583.7,3.54904]
[1733252244025,4.0,3584.4,3583.7,3.54904]
[1733252244469,4.0,3584.4,3583.7,0.7587]
[1733252244667,4.88849817,3584.4,3583.2,3.61073]
[1733252244968,4.88849817,3584.4,3583.2,0.82]
[1733252244969,5.7901,3584.1,3583.2,0.82]
[1733252245270,6.79021,3584.0,3583.2,0.82]
[1733252245488,6.79021,3584.0,3583.0,2.79095]
[1733252245778,6.79021,3584.0,3582.9,0.7914]
[1733252245779,3.0,3583.7,3582.9,0.7914]
[1733252246067,3.0,3583.9,3583.0,3.149184]
[1733252246447,4.0,3583.6,3583.0,3.149184]
[1733252249184,4.0,3583.6,3583.0,0.38615147]
[1733252249363,4.0,3583.6,3583.5,3.56346]
[1733252250570,0.29142131,3584.9,3584.2,2.79001]
[1733252250777,4.0,3584.3,3584.2,3.069011]
[1733252251304,0.29142131,3584.9,3584.2,0.279001]
[1733252251472,0.29142131,3584.9,3583.7,2.79034]
[1733252251681,0.55074388,3584.9,3583.7,2.79034]
[1733252251903,0.55074388,3584.9,3584.0,2.79015]
[1733252252904,0.55074388,3584.9,3583.6,0.8032]
[1733252253198,0.55074388,3584.9,3584.1,2.79003]
[1733252253359,0.55074388,3584.9,3583.6,0.8032]
[1733252253560,0.55074388,3584.9,3583.7,0.359377]
[1733252253787,0.55074388,3584.9,3584.0,2.79017]
[1733252254178,0.55074388,3584.9,3584.1,2.79009]
[1733252254697,0.25932257,3584.8,3583.7,2.79041]
[1733252255000,0.25932257,3584.8,3584.0,2.79017]
[1733252255162,0.25932257,3584.7,3584.0,2.79017]
[1733252255368,0.29142131,3584.9,3584.0,3.069187]
[1733252255369,0.25932257,3584.6,3584.0,3.069187]
[1733252255679,0.25932257,3584.8,3584.0,3.069187]
[1733252255872,0.25932257,3584.7,3584.0,0.279017]
[1733252256096,0.25932257,3584.8,3584.4,2.78981]
[1733252256400,0.25932257,3584.7,3584.5,2.78978]
[1733252256718,4.25932257,3584.6,3584.5,2.78978]
[1733252257596,0.25932257,3584.6,3584.5,2.78978]
[1733252257816,0.26012877,3585.6,3584.9,2.78945]
[1733252258011,4.0,3585.0,3584.9,2.78945]
[1733252258213,4.26012877,3585.0,3584.9,2.78945]
[1733252258569,0.29137511,3585.5,3584.9,2.78945]
[1733252258770,0.26022045,3585.4,3584.9,2.78945]
[1733252259006,0.26022045,3585.3,3584.6,2.78968]
[1733252259214,2.8031847,3585.1,3584.1,2.79008]
[1733252259370,2.8031847,3585.1,3583.9,3.55038]
[1733252259371,3.26022045,3585.0,3583.9,3.55038]
[1733252259578,3.26022045,3585.0,3584.0,2.79017]
[1733252259579,0.26022045,3584.9,3584.0,2.79017]
[1733252259906,3.0,3585.0,3583.9,0.7602]
[1733252259907,0.26022045,3584.8,3583.9,0.7602]
[1733252260106,0.26022045,3584.7,3584.1,2.79007]
[1733252260314,0.26022045,3584.6,3584.1,2.79007]
[1733252260610,0.26022045,3584.5,3583.9,3.55045]
[1733252260773,0.26022045,3584.4,3583.9,4.184537]
[1733252260967,0.26022045,3584.3,3584.0,2.79016]
[1733252261205,0.26047317,3584.2,3584.0,2.79016]
[1733252261411,3.0,3585.0,3584.0,2.79016]
[1733252261714,0.26047903,3584.9,3584.1,2.79009]
[1733252261902,0.26047903,3584.8,3583.9,0.7602]
[1733252262104,0.35515956,3585.3,3583.9,0.7602]
[1733252262105,0.26047903,3584.7,3583.9,0.7602]
[1733252262416,0.26047903,3584.6,3584.3,2.78991]
[1733252262623,0.26047903,3584.5,3584.3,2.78991]
[1733252262826,0.26047903,3584.4,3584.3,2.78991]
[1733252267830,0.26047903,3584.4,3584.1,2.79007]
[1733252268163,2.8031847,3585.1,3583.9,0.7602]
[1733252268164,0.26047903,3584.3,3583.9,3.55042]
[1733252268452,0.26047903,3584.2,3583.9,3.55042]
[1733252268776,2.8031847,3585.1,3583.9,3.55042]
[1733252268777,3.0,3585.0,3584.0,2.79016]
[1733252268973,1.12008181,3584.9,3583.9,0.7602]
[1733252269175,3.26082834,3584.8,3583.9,0.7602]
[1733252269350,0.26082834,3584.7,3583.9,3.55039]
[1733252269669,0.26082834,3584.6,3583.9,3.55039]
[1733252269876,0.26082834,3584.5,3583.9,3.55039]
[1733252270234,0.26085782,3584.4,3583.9,3.55039]
[1733252270551,0.26085782,3584.3,3583.9,3.55039]
[1733252270755,0.26085782,3584.2,3583.9,3.55039]
[1733252270967,3.0,3584.8,3583.9,3.55039]
[1733252271137,0.84915445,3584.7,3583.9,3.55039]
[1733252271339,0.26085798,3584.6,3584.0,2.79016]
[1733252271571,0.26085798,3584.5,3584.1,2.79008]
[1733252271878,0.26085798,3584.4,3583.9,0.7602]
[1733252272048,0.26085798,3584.3,3583.9,0.7602]
[1733252272253,0.26085798,3584.2,3583.6,3.55646]
[1733252272558,0.26085798,3584.1,3583.6,3.55646]
[1733252272763,2.78971,3584.6,3583.6,0.766]
[1733252272935,2.78971,3584.6,3583.7,2.7904]
[1733252272936,0.89868061,3584.5,3583.7,2.7904]
[1733252273131,0.26087996,3584.4,3583.6,0.766]
[1733252273336,0.26087996,3584.3,3583.6,0.766]
[1733252273660,0.26087996,3584.3,3583.0,0.358244]
[1733252273661,0.26087996,3584.2,3583.4,2.79061]
[1733252273864,6.42765065,3584.5,3583.5,0.55]
[1733252273865,0.26087996,3584.1,3583.5,0.55]
[1733252274068,0.26087996,3584.0,3583.4,3.34063]
[1733252274359,0.26089426,3583.9,3583.6,0.55]
[1733252274558,0.26088519,3584.7,3583.8,0.7751]
[1733252274749,0.26088519,3584.6,3583.8,0.7751]
[1733252274951,0.26088519,3584.5,3583.6,3.34046]
[1733252275141,0.26088519,3584.5,3583.6,0.55]
[1733252275142,0.26088519,3584.4,3583.6,0.55]
[1733252275342,0.26088519,3584.3,3583.6,0.55]
[1733252275546,0.26088519,3584.2,3583.6,0.55]
[1733252275764,0.26088519,3584.1,3583.6,0.55]
[1733252275970,0.26088519,3584.1,3583.3,0.8243]
[1733252276181,0.26088519,3584.0,3583.3,0.8243]
[1733252276338,0.26088519,3583.9,3583.3,0.8243]